bitfinex-derivatives/quotes_ETHF0:USTF0_20250702
["timestamp","ask_amount","ask_price","bid_price","bid_amount"]
[1751489115201,0.76835,2601.3,2601.2,2.30356]
[1751489115402,2.24625,2601.3,2601.2,0.76836]
[1751489116200,1.4779,2601.3,2601.2,0.76836]
[1751489116501,1.4779,2601.3,2601.2,4.07004426]
[1751489116800,2.24625,2601.3,2601.2,4.07004426]
[1751489117197,2.24625,2601.3,2601.2,0.76836]
[1751489117802,0.76838,2601.2,2601.1,2.23818]
[1751489119099,36.26838,2601.2,2601.1,2.23821]
[1751489119300,36.26838,2601.2,2601.1,0.76841]
[1751489120702,0.76846,2601.1,2601.0,0.76842]
[1751489121003,36.2684,2601.2,2601.1,0.76841]
[1751489122403,37.22009238,2601.2,2601.1,0.76841]
[1751489125605,36.45169238,2601.2,2601.1,0.76841]
[1751489125807,36.44969238,2601.2,2601.1,4.07009426]
[1751489126103,1.4779,2601.3,2601.2,0.76838]
[1751489126305,37.92757835,2601.3,2601.2,2.29798]
[1751489126701,2.43057835,2601.3,2601.2,2.29798]
[1751489127208,3.19892835,2601.3,2601.2,2.29798]
[1751489128199,2.43057835,2601.3,2601.2,2.29798]
[1751489128906,3.19892835,2601.3,2601.2,2.29798]
[1751489130209,2.43057835,2601.3,2601.2,2.29798]
[1751489131308,3.19892835,2601.3,2601.2,2.29798]
[1751489131609,2.43057835,2601.3,2601.2,2.29798]
[1751489133010,3.19892835,2601.3,2601.2,2.29798]
[1751489133211,3.19892835,2601.3,2601.2,1.5296]
[1751489133411,0.7685,2600.9,2600.8,0.7685]
[1751489133607,38.79568426,2601.1,2600.7,0.00575805]
[1751489133910,0.7685,2600.8,2600.7,0.77426805]
[1751489134109,0.7685,2600.8,2600.7,0.00575805]
[1751489134409,0.76868,2600.2,2600.1,3.02968755]
[1751489134603,1.92165,2600.3,2599.9,3.02968755]
[1751489134808,1.92165,2600.3,2599.8,1.4457]
[1751489134809,2.87476771,2600.2,2599.7,4.37067992]
[1751489135109,2.87476771,2600.2,2599.6,5.53231426]
[1751489135110,0.76883,2599.7,2599.6,5.53231426]
[1751489135412,0.95304771,2599.7,2599.6,10.53231426]
[1751489135609,0.95304771,2599.7,2599.6,10.83155947]
[1751489137612,0.95170345,2599.7,2599.6,10.83158947]
[1751489139109,0.95170345,2599.7,2599.6,7.52990521]
[1751489139110,1.72053345,2599.7,2599.6,7.52990521]
[1751489139314,0.95170345,2599.7,2599.6,10.83158947]
[1751489139614,0.95170345,2599.7,2599.6,5.83158947]
[1751489144711,0.7688,2599.8,2599.7,0.76883]
[1751489144909,0.7688,2599.8,2599.7,2.28083]
[1751489145720,0.76879,2599.9,2599.8,0.76875]
[1751489146521,0.76883,2599.8,2599.7,0.7688]
[1751489146914,3.30168426,2599.9,2599.4,4.81368426]
[1751489147217,11.76974,2600.1,2600.0,0.76872]
[1751489147417,0.76874,2600.0,2599.9,0.76874]
[1751489148218,0.76874,2600.0,2599.7,0.76881]
[1751489148219,0.76883,2599.8,2599.7,0.76881]
[1751489148521,0.76896,2599.4,2599.3,0.76892]
[1751489148818,0.769,2599.1,2599.0,2.30702]
[1751489149422,0.769,2599.2,2599.1,0.76899]
[1751489150215,0.76903,2599.1,2599.0,0.76902]
[1751489150420,2.8333,2599.3,2598.7,6.62777426]
[1751489150421,0.76905,2599.0,2598.9,0.76904]
[1751489150715,2.8333,2599.3,2598.7,5.53043431]
[1751489150918,2.8333,2599.3,2599.2,0.76897]
[1751489151618,2.8333,2599.3,2599.2,2.26317]
[1751489151819,3.60224,2599.3,2599.2,2.26317]
[1751489152021,2.8333,2599.3,2599.2,2.26317]
[1751489152219,2.8333,2599.3,2599.2,5.56485426]
[1751489153117,57.29602,2599.8,2599.2,5.56485426]
[1751489153118,46.502,2599.7,2599.2,4.79588426]
[1751489153322,51.42719,2599.7,2599.2,1.4942]
[1751489153524,0.76893,2599.4,2599.3,0.76891]
[1751489155815,0.76897,2599.3,2599.2,0.76894]
[1751489160925,1.4822,2599.3,2599.2,4.07062426]
[1751489161825,2.25114,2599.3,2599.2,4.07062426]
[1751489162021,1.4822,2599.3,2599.2,4.07062426]
[1751489163119,2.25114,2599.3,2599.2,4.07062426]
[1751489163425,3.20793969,2599.3,2599.2,4.07062426]
[1751489163727,3.20793969,2599.3,2599.2,0.76894]
[1751489165629,2.43899969,2599.3,2599.2,0.76894]
[1751489165832,3.20793969,2599.3,2599.2,4.07062426]
[1751489166527,2.43899969,2599.3,2599.2,4.07062426]
[1751489169230,3.20793969,2599.3,2599.2,4.07062426]
[1751489169428,2.43899969,2599.3,2599.2,4.07062426]
[1751489169932,0.95679969,2599.3,2599.2,4.07062426]
[1751489170129,0.95679969,2599.3,2599.2,5.60242426]
[1751489170333,12.5319,2599.7,2599.6,0.76885]
[1751489170531,50.4802552,2599.7,2599.6,0.76885]
[1751489170923,50.4792552,2599.7,2599.6,0.76885]
[1751489172833,50.4802552,2599.7,2599.6,0.76885]
[1751489173329,13.4894552,2599.7,2599.6,0.76885]
[1751489173532,0.9575552,2599.7,2599.6,0.76885]
[1751489173738,0.9575552,2599.7,2599.6,2.26925]
[1751489174032,0.9575552,2599.7,2599.6,3.78825]
[1751489176237,0.9575552,2599.7,2599.6,2.26925]
[1751489178340,0.9575552,2599.7,2599.6,5.57093426]
[1751489178842,1.4968,2600.0,2599.9,0.76877]
[1751489179041,2.45448872,2600.0,2599.9,0.76877]
[1751489179943,2.45448872,2600.0,2599.9,2.30337]
[1751489180744,0.95768872,2600.0,2599.9,2.30337]
[1751489181041,10.998,2600.3,2600.2,0.76868]
[1751489181237,10.998,2600.3,2600.2,4.07036426]
[1751489181843,10.998,2600.3,2600.2,0.76868]
[1751489185247,1.4872,2600.5,2600.4,0.76862]
[1751489185553,36.9662,2600.5,2600.4,0.76862]
[1751489185948,1.4872,2600.5,2600.4,4.07030426]
[1751489186151,0.76846,2601.0,2600.4,3.30168426]
[1751489186351,0.38524538,2601.2,2601.1,0.76841]
[1751489186551,36.24537,2601.3,2601.2,0.76838]
[1751489186751,35.477,2601.3,2601.2,0.76838]
[1751489186954,36.24535,2601.3,2601.2,0.76838]
[1751489187754,0.76833,2601.4,2601.3,0.76832]
[1751489187951,47.23933,2601.4,2601.3,0.76832]
[1751489188350,0.76838,2601.3,2601.2,0.76836]
[1751489190050,10.996,2601.4,2601.3,0.76835]
[1751489190451,11.76432,2601.4,2601.0,1.4318]
[1751489190656,3.30168426,2601.2,2601.1,0.76841]
[1751489190857,35.467,2601.3,2601.2,0.76838]
[1751489191057,2.8701,2601.5,2601.4,0.76832]
[1751489191257,38.3371,2601.5,2601.4,0.76832]
[1751489192359,39.10539,2601.5,2601.4,0.76832]
[1751489192858,40.05204083,2601.5,2601.4,0.76832]
[1751489193355,40.05204083,2601.5,2600.1,3.84347]
[1751489193356,0.76846,2601.0,2600.9,0.76844]
[1751489193561,4.07016426,2601.0,2600.9,0.76844]
[1751489193751,36.22943,2601.1,2601.0,0.76844]
[1751489194156,0.76848,2601.0,2600.9,0.76846]
[1751489194560,35.461,2601.1,2601.0,0.76844]
[1751489194761,36.22941,2601.1,2601.0,0.76844]
[1751489194956,35.461,2601.1,2600.5,1.92143]
[1751489195156,0.76851,2600.9,2600.8,0.76847]
[1751489195556,2.27881,2600.9,2600.8,0.76847]
[1751489196761,0.76858,2600.6,2600.5,0.76855]
[1751489197063,4.07026426,2600.6,2600.5,0.76855]
[1751489197257,0.76858,2600.6,2600.5,0.76855]
[1751489197458,0.76855,2600.7,2600.6,0.76853]
[1751489198357,1.71489331,2600.7,2600.6,0.76853]
[1751489199061,0.94634331,2600.7,2600.6,0.76853]
[1751489199362,36.40334331,2600.7,2600.6,0.76853]
[1751489199553,35.457,2600.7,2600.6,0.76853]
[1751489199754,36.22553,2600.7,2600.6,0.76853]
[1751489199953,36.40383586,2600.7,2600.6,0.76853]
[1751489200155,36.22553,2600.7,2600.6,0.76853]
[1751489200360,37.17257221,2600.7,2600.6,0.76853]
[1751489201855,0.94704221,2600.7,2600.6,0.76853]
[1751489202262,0.94704221,2600.7,2600.6,2.20163]
[1751489202462,1.71557221,2600.7,2600.6,2.20163]
[1751489203764,0.94704221,2600.7,2600.6,2.20163]
[1751489204566,43.10036382,2601.5,2600.8,0.7685]
[1751489204867,49.68653468,2601.4,2601.3,0.76835]
[1751489205869,0.76839,2601.3,2601.2,0.76836]
[1751489206069,0.76842,2601.2,2601.1,0.76839]
[1751489206263,0.94689468,2601.2,2601.1,0.76839]
[1751489207170,1.71527468,2601.2,2601.1,0.76839]
[1751489207568,0.94689468,2601.2,2601.1,0.76839]
[1751489207865,1.71527468,2601.2,2601.1,0.76839]
[1751489209369,0.94689468,2601.2,2601.1,0.76839]
[1751489210468,1.71527468,2601.2,2601.1,0.76839]
[1751489210865,0.94689468,2601.2,2601.1,0.76839]
[1751489212673,0.94689468,2601.2,2601.1,2.21279]
[1751489213071,1.71527468,2601.2,2601.1,2.21279]
[1751489213772,0.94689468,2601.2,2601.1,2.21279]
[1751489215075,0.94689468,2601.2,2601.1,5.51447426]
[1751489217676,0.94689468,2601.2,2601.1,2.21279]
[1751489218275,1.71527468,2601.2,2601.1,2.21279]
[1751489218477,0.94689468,2601.2,2601.1,2.21279]
[1751489218671,1.71527468,2601.2,2601.1,2.21279]
[1751489222478,1.71527468,2601.2,2601.1,0.76839]
[1751489222773,4.24857894,2601.2,2600.7,1.9213]
[1751489222974,0.76853,2600.8,2600.7,0.7685]
[1751489223275,0.76853,2600.7,2600.6,0.76854]
[1751489223578,4.50892468,2600.7,2600.6,0.76854]
[1751489223774,0.76862,2600.5,2600.4,0.76859]
[1751489224281,1.71551468,2600.5,2600.4,0.76859]
[1751489224476,0.94689468,2600.5,2600.4,4.07027426]
[1751489224778,2.7935,2600.7,2600.5,0.76859]
[1751489224779,1.71660564,2600.6,2600.5,0.76859]
[1751489224979,1.71660557,2600.6,2600.5,0.76859]
[1751489226079,0.94804557,2600.6,2600.5,0.76859]
[1751489226279,0.94804557,2600.6,2600.5,2.28869]
[1751489226979,1.71660557,2600.6,2600.5,0.76859]
[1751489229774,0.94804557,2600.6,2600.5,0.76859]
[1751489230183,1.71660557,2600.6,2600.5,0.76859]
[1751489231481,0.94804557,2600.6,2600.5,0.76859]
[1751489231782,1.71660557,2600.6,2600.5,0.76859]
[1751489235484,0.76859,2600.5,2600.4,0.76859]
[1751489235677,3.11433557,2600.5,2600.4,0.76859]
[1751489235875,2.34574557,2600.5,2600.0,5.22349426]
[1751489236076,0.76874,2600.1,2600.0,0.76871]
[1751489236281,1.92179,2600.1,2599.7,0.76882]
[1751489236481,3.30168426,2599.8,2599.3,0.76891]
[1751489236683,0.76887,2599.6,2599.5,0.76886]
[1751489236983,1.71705454,2599.6,2599.5,0.76886]
[1751489237386,0.76887,2599.6,2599.5,0.76886]
[1751489237983,2.19495,2599.7,2599.6,0.76885]
[1751489238183,3.1424952,2599.7,2599.6,0.76885]
[1751489239387,2.19495,2599.7,2599.6,0.76885]
[1751489240282,0.76888,2599.6,2599.5,0.76886]
[1751489240987,2.19495,2599.7,2599.6,0.76885]
[1751489241488,2.19493,2599.7,2599.6,0.76885]
[1751489242188,1.4261,2599.7,2599.6,0.76885]
[1751489242489,2.19493,2599.7,2599.6,0.76885]
[1751489242888,1.4261,2599.7,2599.6,0.76885]
[1751489243086,2.19493,2599.7,2599.6,0.76885]
[1751489243590,1.4261,2599.7,2599.6,0.76885]
[1751489244086,2.19493,2599.7,2599.6,0.76885]
[1751489244687,1.4261,2599.7,2599.6,0.76885]
[1751489245791,1.4261,2599.7,2599.6,4.07053426]
[1751489246188,1.4261,2599.7,2599.6,0.76885]
[1751489246394,2.19493,2599.7,2599.6,0.76885]
[1751489246596,1.4261,2599.7,2599.6,0.76885]
[1751489247293,2.19493,2599.7,2599.6,0.76885]
[1751489250095,0.76878,2599.9,2599.8,0.76877]
[1751489250296,1.71606122,2599.9,2599.8,0.76877]
[1751489250494,0.7688,2599.8,2599.7,2.18562]
[1751489250695,1.71608122,2599.8,2599.7,2.18562]
[1751489250999,1.71608122,2599.8,2599.7,0.76882]
[1751489252787,0.94728122,2599.8,2599.7,0.76882]
[1751489253097,2.16645,2600.0,2599.9,0.76877]
[1751489253396,3.11436793,2600.0,2599.9,0.76877]
[1751489253593,0.7688,2599.9,2599.8,0.76878]
[1751489253890,0.76885,2599.7,2599.6,0.7688]
[1751489254596,0.76882,2599.8,2599.7,0.76878]
[1751489254996,1.71711615,2599.8,2599.7,0.76878]
[1751489260099,0.76885,2599.6,2599.5,0.76888]
[1751489260399,1.71714615,2599.6,2599.5,0.76888]
[1751489265502,4.64644615,2599.6,2599.5,0.76888]
[1751489267094,0.76891,2599.5,2599.4,0.76889]
[1751489267296,0.76891,2599.4,2599.3,2.18042]
[1751489267602,1.71720615,2599.4,2599.3,2.18042]
[1751489268392,1.71720615,2599.4,2599.3,0.76892]
[1751489269702,1.72688863,2599.4,2599.3,0.76892]
[1751489270404,0.76897,2599.3,2599.2,0.76894]
[1751489270704,1.72694863,2599.3,2599.2,0.76894]
[1751489271502,0.76897,2599.2,2599.1,2.18808]
[1751489271702,3.26174863,2599.2,2599.1,2.18808]
[1751489272096,0.769,2599.1,2599.0,0.76902]
[1751489272298,1.72697863,2599.1,2599.0,0.76902]
[1751489273206,0.7691,2598.9,2598.8,0.76906]
[1751489273406,5.02876289,2598.9,2598.8,0.76906]
[1751489274803,0.95797863,2598.9,2598.8,0.76909]
[1751489275109,1.72703863,2598.9,2598.8,0.76909]
[1751489275305,0.95797863,2598.9,2598.8,4.07077426]
[1751489275605,0.3803093,2598.9,2598.8,10.49267426]
[1751489276003,0.3803093,2598.9,2598.8,2.19099]
[1751489276204,0.3803093,2598.9,2598.8,5.49267426]
[1751489277196,0.3803093,2598.9,2598.8,10.49267426]
[1751489279410,9.3e-06,2598.9,2598.8,10.49267426]
[1751489279609,1.516,2599.7,2598.8,9.72358426]
[1751489279908,1.516,2599.7,2599.6,0.76885]
[1751489281409,12.5273,2599.9,2599.8,0.7688]
[1751489281608,13.9458,2599.9,2599.8,0.7688]
[1751489281911,2.9668,2599.9,2599.8,0.7688]
[1751489282612,1.5483,2599.9,2599.8,2.23]
[1751489283909,2.31707,2599.9,2599.8,2.23]
[1751489284106,1.5483,2599.9,2599.8,2.23]
[1751489284308,1.5342,2600.3,2599.9,1.92192]
[1751489284511,1.5342,2600.3,2600.2,0.76868]
[1751489284813,2.30285,2600.3,2600.2,0.76868]
[1751489285412,0.76871,2600.2,2600.1,0.76869]
[1751489285715,5.60455426,2600.3,2600.2,0.76868]
[1751489286606,45.25088426,2600.3,2599.3,5.22402426]
[1751489286810,3.30168426,2599.7,2599.4,1.92227]
[1751489287011,1.5538,2599.6,2599.5,0.76888]
[1751489287212,2.32265,2599.6,2599.5,2.22418]
[1751489288213,2.32265,2599.6,2599.5,0.76888]
[1751489288415,1.5538,2599.6,2599.5,0.76888]
[1751489288612,2.32265,2599.6,2599.5,0.76888]
[1751489289114,2.32265,2599.6,2599.5,2.22418]
[1751489291714,3.27291588,2599.6,2599.5,2.22418]
[1751489293316,2.50406588,2599.6,2599.5,2.22418]
[1751489294314,3.27291588,2599.6,2599.5,2.22418]
[1751489294508,3.27291588,2599.6,2599.5,0.76888]
[1751489296015,0.76891,2599.5,2599.4,0.76889]
[1751489296218,1.71918588,2599.5,2599.4,0.7689]
[1751489300723,0.76894,2599.3,2599.2,1.4523]
[1751489301025,0.76901,2599.2,2599.1,0.76898]
[1751489301221,4.66777588,2599.2,2599.1,0.76898]
[1751489301626,3.89876588,2599.2,2599.1,0.76898]
[1751489302425,4.66773588,2599.2,2599.1,0.76898]
[1751489303822,0.76906,2599.0,2598.9,0.76904]
[1751489304027,1.71932588,2599.0,2598.9,0.76904]
[1751489304628,0.95026588,2599.0,2598.9,0.76904]
[1751489304928,0.76903,2599.0,2598.9,0.76904]
[1751489305127,1.71929588,2599.0,2598.9,0.76904]
[1751489305829,0.95026588,2599.0,2598.9,0.76904]
[1751489307132,1.71929588,2599.0,2598.9,0.76904]
[1751489309231,0.95026588,2599.0,2598.9,0.76904]
[1751489309730,1.71929588,2599.0,2598.9,0.76904]
[1751489310032,0.95026588,2599.0,2598.9,0.76904]
[1751489310531,1.71929588,2599.0,2598.9,0.76904]
[1751489311731,0.95026588,2599.0,2598.9,0.76904]
[1751489312036,1.71929588,2599.0,2598.9,2.22844]
[1751489312329,0.95026588,2599.0,2598.9,5.53012426]
[1751489312524,1.494,2599.7,2599.6,0.76885]
[1751489312729,1.494,2599.7,2599.6,4.07053426]
[1751489313025,0.76891,2599.5,2599.4,0.7689]
[1751489313228,1.4642,2599.6,2599.5,0.76888]
[1751489313830,1.4642,2599.6,2599.5,2.15588]
[1751489314831,0.76878,2599.9,2599.5,3.30919]
[1751489315135,1.92168,2600.3,2599.6,3.30168426]
[1751489315136,2.20266,2600.0,2599.6,3.30168426]
[1751489315331,0.76877,2599.9,2599.8,0.76878]
[1751489317537,2.20266,2600.0,2599.9,0.76877]
[1751489317739,1.4339,2600.0,2599.9,0.76877]
[1751489318137,2.20264,2600.0,2599.9,0.76877]
[1751489320442,0.7688,2599.8,2599.7,1.3749]
[1751489320644,0.76878,2599.9,2599.8,0.76877]
[1751489321738,0.7688,2599.8,2599.7,1.3749]
[1751489321942,2.2306,2599.8,2599.7,2.14373]
[1751489323943,1.4618,2599.8,2599.7,2.14373]
[1751489324243,5.50432426,2600.0,2599.9,0.76877]
[1751489324445,3.14811489,2600.0,2599.9,0.76877]
[1751489325238,2.37937489,2600.0,2599.9,0.76877]
[1751489325746,3.14811489,2600.0,2599.9,0.76877]
[1751489326244,2.37937489,2600.0,2599.9,0.76877]
[1751489326446,3.14811489,2600.0,2599.9,2.26547]
[1751489327546,2.37937489,2600.0,2599.9,2.26547]
[1751489327742,0.76858,2600.6,2600.1,1.92177]
[1751489327948,0.94500832,2600.5,2600.4,4.07030426]
[1751489328144,0.94500832,2600.5,2600.4,1.4967]
[1751489328448,0.94500832,2600.5,2600.2,0.76866]
[1751489328449,0.76864,2600.4,2600.2,0.76866]
[1751489328649,4.07029426,2600.5,2600.3,0.76862]
[1751489328847,0.94412835,2600.4,2600.3,0.76862]
[1751489329545,39.05543,2600.7,2600.6,0.76856]
[1751489329746,39.99915287,2600.7,2600.6,0.76856]
[1751489331346,43.30083713,2600.7,2600.6,0.76856]
[1751489334449,0.76858,2600.6,2600.5,0.76857]
[1751489334650,42.35713426,2600.7,2600.6,0.76856]
[1751489334853,43.29916275,2600.7,2600.6,0.76856]
[1751489336748,7.90316275,2600.7,2600.6,0.76856]
[1751489336951,43.28916275,2600.7,2600.6,0.76856]
[1751489338253,43.28916275,2600.7,2600.4,1.4965]
[1751489338254,0.76859,2600.6,2600.5,0.76857]
[1751489338452,1.71061849,2600.6,2600.5,0.76857]
[1751489340757,1.71068778,2600.6,2600.5,0.76857]
[1751489347760,0.94209778,2600.6,2600.5,0.76857]
[1751489347961,36.32109778,2600.6,2600.5,2.23987]
[1751489348162,36.32109778,2600.6,2600.5,3.70287]
[1751489350562,0.94209778,2600.6,2600.5,3.70287]
[1751489355461,0.94209778,2600.6,2600.5,2.23157]
[1751489355665,5.61758204,2600.6,2600.5,0.76857]
[1751489356060,6.38614204,2600.6,2600.5,0.76857]
[1751489359669,0.76862,2600.5,2600.4,0.76859]
[1751489359870,3.05131778,2600.5,2600.4,0.76859]
[1751489360969,37.64969778,2600.5,2599.9,2.22491205]
[1751489361169,0.76867,2600.3,2600.2,0.76865]
[1751489361376,36.30809778,2600.3,2600.0,1.4808]
[1751489361568,1.71080778,2600.2,2600.1,0.76869]
[1751489361764,0.94209778,2600.2,2600.1,0.76869]
[1751489362069,35.365,2600.3,2600.2,0.76868]
[1751489362270,36.30962395,2600.3,2600.2,3.64128]
[1751489364670,37.07827395,2600.3,2600.2,2.24948]
[1751489368366,0.76873,2600.1,2600.0,0.7687]
[1751489368570,1.71334396,2600.2,2600.1,0.76871]
[1751489368768,1.71334456,2600.2,2600.1,0.76871]
[1751489372777,0.76874,2600.1,2600.0,0.76872]
[1751489372974,0.76874,2600.0,2599.9,0.76874]
[1751489373275,1.71338456,2600.0,2599.9,0.76874]
[1751489375475,0.94464456,2600.0,2599.9,4.07042426]
[1751489378675,0.94464456,2600.0,2599.9,0.76874]
[1751489378875,1.71338456,2600.0,2599.9,0.76874]
[1751489379370,4.24632882,2600.0,2599.6,1.4803]
[1751489379576,0.76883,2599.7,2599.6,2.15823]
[1751489380473,0.76878,2599.9,2599.8,0.76877]
[1751489380679,1.71287467,2599.9,2599.8,0.76877]
[1751489380876,37.06987467,2599.9,2599.8,0.76877]
[1751489383781,36.30109467,2599.9,2599.8,0.76877]
[1751489383976,37.06986467,2599.9,2599.8,0.76877]
[1751489384684,36.30109467,2599.9,2599.8,2.24137]
[1751489384883,0.94409467,2599.9,2599.8,2.24137]
[1751489385085,0.76862,2600.4,2600.3,0.76865]
[1751489385287,1.71196726,2600.4,2600.3,0.76865]
[1751489390093,0.76867,2600.3,2600.2,0.76866]
[1751489390288,1.71201726,2600.3,2600.2,0.76866]
[1751489390992,0.94334726,2600.3,2600.2,0.76866]
[1751489391592,1.71199726,2600.3,2600.2,0.76866]
[1751489391898,0.94334726,2600.3,2600.2,0.76866]
[1751489392396,1.71199726,2600.3,2600.2,0.76866]
[1751489392595,0.94334726,2600.3,2600.2,0.76866]
[1751489392996,0.94334726,2600.3,2600.2,2.13846]
[1751489393491,1.71218939,2600.4,2600.2,1.3698]
[1751489393696,0.94356939,2600.3,2600.2,1.3698]
[1751489393897,0.94356939,2600.3,2600.2,2.13848]
[1751489396996,1.71221939,2600.3,2600.2,2.13848]
[1751489399199,0.76871,2600.2,2600.1,0.76869]
[1751489399499,0.76871,2600.2,2599.6,4.65978426]
[1751489399500,0.76874,2600.1,2600.0,0.76872]
[1751489399702,3.11350939,2600.1,2600.0,0.76872]
[1751489410410,0.94356939,2600.1,2600.0,4.07040426]
[1751489420919,10.948,2600.6,2600.5,0.76859]
[1751489421116,0.76862,2600.5,2600.4,0.76861]
[1751489421316,1.7132415,2600.5,2600.4,0.76861]
[1751489421716,0.9446215,2600.5,2600.4,0.76861]
[1751489425923,1.7132115,2600.5,2600.4,0.76861]
[1751489426123,0.9446215,2600.5,2600.4,0.76861]
[1751489427528,0.9446215,2600.5,2600.4,0.76862]
[1751489427529,0.9437043,2600.5,2600.4,0.76862]
[1751489427729,0.9437043,2600.5,2600.4,2.12352]
[1751489434330,1.3419,2600.8,2600.7,0.76853]
[1751489434530,2.28442918,2600.8,2600.7,0.76853]
[1751489434833,49.56068426,2602.0,2600.8,1.92122]
[1751489435029,0.76833,2601.4,2601.3,0.76833]
[1751489435236,1.71066287,2601.4,2601.3,0.76833]
[1751489435531,2.31733287,2601.4,2601.3,0.76833]
[1751489435732,3.08565287,2601.4,2601.3,0.76833]
[1751489436133,2.31733287,2601.4,2601.3,0.76833]
[1751489438229,2.31733287,2601.4,2601.3,4.07001426]
[1751489439432,2.31733287,2601.4,2601.1,4.66118426]
[1751489439735,0.76847,2601.0,2600.9,0.76846]
[1751489439935,5.00961553,2601.0,2600.9,0.76846]
[1751489440536,0.76858,2600.6,2600.5,0.76857]
[1751489440929,1.70834655,2600.6,2600.5,0.76857]
[1751489441131,0.7686,2600.5,2600.4,0.7686]
[1751489441335,5.01005081,2600.5,2600.4,0.7686]
[1751489443637,5.01005081,2600.5,2600.0,6.64485426]
[1751489443638,0.76864,2600.4,2600.3,0.76863]
[1751489443840,3.14480655,2600.4,2600.3,0.76863]
[1751489447441,2.37616655,2600.4,2600.3,0.76863]
[1751489448139,3.14478655,2600.4,2600.3,0.76863]
[1751489448339,2.37616655,2600.4,2600.3,0.76863]
[1751489448642,3.14478655,2600.4,2600.3,0.76863]
[1751489451939,0.76868,2600.3,2600.0,4.72308426]
[1751489452141,2.13138,2600.3,2600.2,0.76865]
[1751489452440,3.07268857,2600.3,2600.2,0.76865]
[1751489456147,0.76872,2600.2,2600.1,0.76868]
[1751489456343,1.71002857,2600.2,2600.1,0.76868]
[1751489459349,0.76874,2600.1,2600.0,0.76871]
[1751489459844,1.70989836,2600.1,2600.0,0.76871]
[1751489460450,0.76874,2600.1,2600.0,0.76871]
[1751489460650,0.7687,2600.2,2600.1,0.76868]
[1751489460849,1.70978391,2600.2,2600.1,0.76868]
[1751489461351,0.76878,2599.9,2599.8,0.76876]
[1751489461551,0.94108391,2599.9,2599.8,0.7688]
[1751489461950,0.94108391,2599.9,2599.8,3.4839]
[1751489462351,1.70985391,2599.9,2599.8,3.4839]
[1751489462746,0.94108391,2599.9,2599.8,3.4839]
[1751489463350,0.76873,2600.1,2600.0,0.76874]
[1751489463550,1.7095728,2600.1,2600.0,0.76874]
[1751489465448,0.9408428,2600.1,2600.0,2.23674]
[1751489465654,0.76869,2600.2,2600.1,0.76871]
[1751489465855,1.70958381,2600.2,2600.1,3.30168426]
[1751489466050,0.76871,2600.1,2600.0,2.23672]
[1751489466244,1.70960381,2600.1,2600.0,2.23672]
[1751489467453,1.70960381,2600.1,2600.0,1.468]
[1751489467753,0.76881,2599.8,2599.7,0.7688]
[1751489467952,0.76885,2599.7,2599.6,0.76884]
[1751489468153,2.13095,2599.7,2599.6,0.76884]
[1751489468352,3.07365483,2599.7,2599.6,0.76884]
[1751489469053,0.76886,2599.6,2599.5,1.4658]
[1751489469248,3.1526331,2599.6,2599.5,2.23468]
[1751489469556,12.60751067,2599.6,2598.8,1.92274]
[1751489469853,0.94335641,2599.5,2598.9,4.76921]
[1751489470053,0.76897,2599.2,2599.1,4.07066426]
[1751489470253,0.76896,2599.3,2599.2,0.76897]
[1751489470454,0.94325415,2599.3,2599.2,2.18567]
[1751489471453,0.7689,2599.5,2599.4,0.7689]
[1751489471652,1.7117489,2599.5,2599.4,4.07058426]
[1751489471851,1.7117489,2599.5,2599.4,3.30168426]
[1751489472052,1.7117489,2599.5,2599.4,5.48729426]
[1751489472251,0.9428489,2599.5,2599.4,5.48729426]
[1751489472749,1.7117289,2599.5,2599.4,5.48729426]
[1751489473257,0.9428489,2599.5,2599.4,5.48729426]
[1751489474556,1.7117289,2599.5,2599.4,5.48729426]
[1751489474952,1.7117289,2599.5,2599.4,2.18561]
[1751489475151,1.7117289,2599.5,2599.4,1.4167]
[1751489475457,0.76891,2599.4,2599.3,0.76891]
[1751489475658,0.76891,2599.4,2599.3,2.12221]
[1751489475955,0.76891,2599.5,2599.4,0.76888]
[1751489476154,1.71311431,2599.5,2599.4,0.76888]
[1751489476454,1.71308431,2599.5,2599.4,4.07056426]
[1751489476654,0.94420431,2599.5,2599.4,4.07056426]
[1751489477757,1.71308431,2599.5,2599.4,4.07056426]
[1751489477953,0.76888,2599.5,2599.4,4.07056426]
[1751489478154,1.71297717,2599.5,2599.4,4.07056426]
[1751489478658,0.76891,2599.4,2599.3,2.12223]
[1751489484464,0.76891,2599.4,2599.3,2.12224]
[1751489485166,1.71363263,2599.4,2599.3,2.12224]
[1751489486368,1.71363263,2599.4,2599.3,1.3533]
[1751489486561,5.01531689,2599.4,2599.3,1.3533]
[1751489488471,0.76894,2599.3,2599.2,0.76896]
[1751489488670,1.71366263,2599.3,2599.2,0.76896]
[1751489489374,0.76894,2599.3,2599.2,0.76896]
[1751489489670,1.71432097,2599.3,2599.2,0.76896]
[1751489492770,1.71432097,2599.3,2599.2,2.14936]
[1751489493072,1.71432097,2599.3,2599.2,5.45104426]
[1751489495474,0.94538097,2599.3,2599.2,5.45104426]
[1751489495977,1.71432097,2599.3,2599.2,5.45104426]
[1751489496279,1.71432097,2599.3,2599.2,2.14936]
[1751489496775,1.71432097,2599.3,2599.2,0.76896]
[1751489497078,1.71432097,2599.3,2599.2,2.08036]
[1751489500579,0.94538097,2599.3,2599.2,5.40685264]
[1751489500977,0.76889,2599.5,2599.4,0.76888]
[1751489501177,0.76891,2599.4,2599.3,2.09283]
[1751489501478,1.71650096,2599.4,2599.3,2.14979786]
[1751489502177,1.71650096,2599.4,2599.3,2.09283]
[1751489502374,1.71650096,2599.4,2599.3,2.18195734]
[1751489503278,1.71650096,2599.4,2599.3,2.21411682]
[1751489503879,1.71650096,2599.4,2599.3,2.25863041]
[1751489509785,1.71650096,2599.4,2599.3,2.27246204]
[1751489510384,1.71650096,2599.4,2599.3,2.28629367]
[1751489512489,1.71650096,2599.4,2599.3,2.31157007]
[1751489518089,1.71650096,2599.4,2599.3,2.34363087]
[1751489518290,1.71650096,2599.4,2599.3,0.25080087]